[Event "European Online Club-ch-C 2021"]
[Site "Online"]
[Date "2021.03.27"]
[Round "6.12"]
[White "Marn, Jan"]
[Black "Ponkratov, Pavel"]
[Result "1-0"]
[ECO "A32"]
[WhiteElo "2346"]
[BlackElo "2619"]
[Annotator "ChessBase"]
[PlyCount "79"]
[EventDate "2021.03.27"]
[EventType "team-tourn"]
[EventCountry "NET"]
[SourceTitle "playchess.com"]
[Source "ChessBase"]
[SourceQuality "1"]
[TimeControl "900+5"]

1. d4 {[%emt 0:00:00]} Nf6 {[%emt 0:00:02]} 2. c4 {[%emt 0:00:04]} e6 {[%emt 0:00:02]} 3. g3 {[%emt 0:00:02]} c5 {[%emt 0:00:03]} 4. Nf3 {[%emt 0:00:02]} cxd4 {[%emt 0:00:03]} 5. Nxd4 {[%emt 0:00:02]} Nc6 {[%emt 0:00:06]} 6. Bg2 {[%emt 0:00:03]} Ne5 {[%emt 0:00:01]} 7. b3 {[%emt 0:00:25]} Bb4+ {[%emt 0:00:13]} 8. Bd2 {[%emt 0:00:03]} Bc5 {[%emt 0:00:01]} 9. Bc3 {[%emt 0:00:25]} d5 {[%emt 0:00:02]} 10. O-O {[%emt 0:00:50]} dxc4 {[%emt 0:00:32]} 11. bxc4 {[%emt 0:00:05]} O-O {[%emt 0:00:02]} 12. Nb3 {[%emt 0:00:40]} Qc7 {[%emt 0:01:22]} 13. Nxc5 {[%emt 0:02:55]} Qxc5 {[%emt 0:00:03]} 14. Qb3 {[%emt 0:00:12]} Rd8 {[%emt 0:00:34]} 15. Na3 {[%emt 0:00:51]} Rb8 {[%emt 0:02:45]} 16. Rfd1 {[%emt 0:02:32]} Rxd1+ {[%emt 0:02:00]} 17. Rxd1 {[%emt 0:00:00]} Bd7 {[%emt 0:00:01]} 18. Bb4 {[%emt 0:00:14]} Qc8 {[%emt 0:00:31]} 19. Bd6 {[%emt 0:00:05]} Nc6 {[%emt 0:00:02]} 20. Bxb8 {[%emt 0:00:14]} Qxb8 {[%emt 0:00:02]} 21. Nb5 {[%emt 0:01:19]} h5 {[%emt 0:00:15]} 22. Nd6 {[%emt 0:00:33]} b6 {[%emt 0:00:10]} 23. Ne4 {[%emt 0:00:50]} Nxe4 {[%emt 0:00:29]} 24. Bxe4 {[%emt 0:00:00]} Ne5 {[%emt 0:00:02]} 25. f4 {[%emt 0:01:11]} Bc6 {[%emt 0:00:03]} 26. Bxc6 {[%emt 0:00:02]} Nxc6 {[%emt 0:00:02]} 27. Qb5 {[%emt 0:00:10]} Qc7 {[%emt 0:01:02]} 28. Qxh5 {[%emt 0:01:09]} a6 {[%emt 0:00:07]} 29. c5 {[%emt 0:00:17]} g6 {[%emt 0:01:07]} 30. Qg5 {[%emt 0:00:27]} Kg7 {[%emt 0:00:10]} 31. h4 {[%emt 0:00:26]} f6 {[%emt 0:00:49]} 32. Qg4 {[%emt 0:00:03]} bxc5 {[%emt 0:00:17]} 33. h5 {[%emt 0:00:32]} g5 {[%emt 0:00:11]} 34. fxg5 {[%emt 0:00:05]} f5 {[%emt 0:00:01]} 35. Qf4 {[%emt 0:00:08]} Qb7 {[%emt 0:00:04]} 36. Qd6 {[%emt 0:00:34]} Nd4 {[%emt 0:00:07]} 37. Qxc5 {[%emt 0:00:08]} Nxe2+ {[%emt 0:00:20]} 38. Kf2 {[%emt 0:00:02]} f4 {[%emt 0:00:09]} 39. Qe5+ {[%emt 0:00:10]} Kh7 {[%emt 0:00:03]} 40. Qxe2 {[%emt 0:00:03]} 1-0

[Event "European Online Club-ch-C 2021"]
[Site "Online"]
[Date "2021.03.27"]
[Round "6.13"]
[White "Donchenko, Alexander"]
[Black "Babula, Vlastimil"]
[Result "1-0"]
[ECO "E16"]
[WhiteElo "2678"]
[BlackElo "2559"]
[Annotator "ChessBase"]
[PlyCount "75"]
[EventDate "2021.03.27"]
[EventType "team-tourn"]
[EventCountry "NET"]
[SourceTitle "playchess.com"]
[Source "ChessBase"]
[SourceQuality "1"]
[TimeControl "900+5"]

1. d4 {[%emt 0:00:00]} Nf6 {[%emt 0:00:05]} 2. c4 {[%emt 0:00:03]} e6 {[%emt 0:00:03]} 3. g3 {[%emt 0:00:08]} Bb4+ {[%emt 0:00:12]} 4. Nd2 {[%emt 0:00:06]} d5 {[%emt 0:00:48]} 5. Bg2 {[%emt 0:00:07]} O-O {[%emt 0:00:11]} 6. Ngf3 {[%emt 0:00:01]} b6 {[%emt 0:00:24]} 7. O-O {[%emt 0:00:03]} Bb7 {[%emt 0:00:09]} 8. Ne5 {[%emt 0:00:01]} Nbd7 {[%emt 0:01:03]} 9. Qa4 {[%emt 0:00:07]} Bd6 {[%emt 0:00:52]} 10. Nxd7 {[%emt 0:00:03]} Qxd7 {[%emt 0:00:10]} 11. Qxd7 {[%emt 0:00:02]} Nxd7 {[%emt 0:00:03]} 12. cxd5 {[%emt 0:00:00]} exd5 {[%emt 0:00:07]} 13. Nc4 {[%emt 0:00:01]} Be7 {[%emt 0:00:32]} 14. Bf4 {[%emt 0:01:24]} c6 {[%emt 0:01:12]} 15. Nd6 {[%emt 0:00:14]} Bxd6 {[%emt 0:00:18]} 16. Bxd6 {[%emt 0:00:00]} Rfe8 {[%emt 0:00:03]} 17. Rfe1 {[%emt 0:00:26]} f5 {[%emt 0:01:01]} 18. a4 {[%emt 0:01:20]} a5 {[%emt 0:00:23]} 19. e3 {[%emt 0:00:36]} Re6 {[%emt 0:00:08]} 20. Bf4 {[%emt 0:00:26]} c5 {[%emt 0:01:54]} 21. Red1 {[%emt 0:01:22]} Nf6 {[%emt 0:01:05]} 22. b3 {[%emt 0:03:01]} Rc8 {[%emt 0:00:16]} 23. Rac1 {[%emt 0:00:26]} Ne4 {[%emt 0:01:55]} 24. Bh3 {[%emt 0:00:20]} Rf6 {[%emt 0:00:31]} 25. f3 {[%emt 0:00:29]} Nd6 {[%emt 0:00:09]} 26. dxc5 {[%emt 0:01:26]} bxc5 {[%emt 0:00:11]} 27. e4 {[%emt 0:00:07]} Nf7 {[%emt 0:01:45]} 28. Bxf5 {[%emt 0:00:38]} Re8 {[%emt 0:00:11]} 29. Rxc5 {[%emt 0:00:08]} dxe4 {[%emt 0:00:45]} 30. fxe4 {[%emt 0:00:05]} g6 {[%emt 0:00:16]} 31. Bh3 {[%emt 0:01:05]} Bxe4 {[%emt 0:00:18]} 32. Re1 {[%emt 0:00:26]} Rb6 {[%emt 0:00:24]} 33. Rb5 {[%emt 0:00:15]} Rxb5 {[%emt 0:00:11]} 34. axb5 {[%emt 0:00:01]} Bc6 {[%emt 0:00:04]} 35. Rxe8+ {[%emt 0:00:05]} Bxe8 {[%emt 0:00:03]} 36. b6 {[%emt 0:00:02]} Bc6 {[%emt 0:00:03]} 37. Bc7 {[%emt 0:00:40]} Ng5 {[%emt 0:00:12]} 38. Bc8 {[%emt 0:00:03]} 1-0

[Event "European Online Club-ch-C 2021"]
[Site "Online"]
[Date "2021.03.27"]
[Round "6.14"]
[White "Grigorian, Spartak"]
[Black "Heimann, Andreas"]
[Result "0-1"]
[ECO "D85"]
[WhiteElo "2458"]
[BlackElo "2606"]
[Annotator "ChessBase"]
[PlyCount "66"]
[EventDate "2021.03.27"]
[EventType "team-tourn"]
[EventCountry "NET"]
[SourceTitle "playchess.com"]
[Source "ChessBase"]
[SourceQuality "1"]
[TimeControl "900+5"]

1. d4 {[%emt 0:00:00]} Nf6 {[%emt 0:00:03]} 2. c4 {[%emt 0:00:02]} g6 {[%emt 0:00:05]} 3. Nc3 {[%emt 0:00:03]} d5 {[%emt 0:00:03]} 4. Nf3 {[%emt 0:00:09]} Bg7 {[%emt 0:00:02]} 5. cxd5 {[%emt 0:00:43]} Nxd5 {[%emt 0:00:05]} 6. e4 {[%emt 0:00:01]} Nxc3 {[%emt 0:00:02]} 7. bxc3 {[%emt 0:00:00]} c5 {[%emt 0:00:01]} 8. Rb1 {[%emt 0:00:01]} O-O {[%emt 0:00:16]} 9. Be2 {[%emt 0:00:01]} cxd4 {[%emt 0:00:03]} 10. cxd4 {[%emt 0:00:02]} Qa5+ {[%emt 0:00:01]} 11. Bd2 {[%emt 0:00:03]} Qxa2 {[%emt 0:00:01]} 12. O-O {[%emt 0:00:01]} Bg4 {[%emt 0:00:03]} 13. Bg5 {[%emt 0:00:53]} Nc6 {[%emt 0:00:07]} 14. d5 {[%emt 0:00:46]} Rfd8 {[%emt 0:01:09]} 15. Rxb7 {[%emt 0:00:33]} h6 {[%emt 0:00:42]} 16. Bxe7 {[%emt 0:01:50]} Nxe7 {[%emt 0:00:03]} 17. Rxe7 {[%emt 0:00:00]} a5 {[%emt 0:00:01]} 18. h3 {[%emt 0:00:37]} Bxf3 {[%emt 0:03:32]} 19. Bxf3 {[%emt 0:00:23]} Qa3 {[%emt 0:00:39]} 20. Rb7 {[%emt 0:00:24]} a4 {[%emt 0:00:02]} 21. Qb1 {[%emt 0:04:32]} Qd6 {[%emt 0:01:25]} 22. Qa2 {[%emt 0:03:18]} a3 {[%emt 0:00:06]} 23. Rb3 {[%emt 0:01:21]} Rdb8 {[%emt 0:00:18]} 24. Rfb1 {[%emt 0:00:10]} Bb2 {[%emt 0:00:06]} 25. Bd1 {[%emt 0:00:37]} Qf4 {[%emt 0:01:14]} 26. Re3 {[%emt 0:00:02]} Bd4 {[%emt 0:02:07]} 27. Re2 {[%emt 0:00:17]} Rxb1 {[%emt 0:00:32]} 28. Qxb1 {[%emt 0:00:00]} Rc8 {[%emt 0:00:08]} 29. Qd3 {[%emt 0:00:14]} Bb2 {[%emt 0:00:15]} 30. g3 {[%emt 0:00:06]} Qc1 {[%emt 0:00:16]} 31. e5 {[%emt 0:00:07]} Rc3 {[%emt 0:00:25]} 32. Qa6 {[%emt 0:00:12]} Qxd1+ {[%emt 0:00:03]} 33. Kg2 {[%emt 0:00:01]} Qxd5+ {[%emt 0:00:02]} 0-1

[Event "European Online Club-ch-C 2021"]
[Site "Online"]
[Date "2021.03.27"]
[Round "6.15"]
[White "Keymer, Vincent"]
[Black "Reuker, Jari"]
[Result "1-0"]
[ECO "A13"]
[WhiteElo "2591"]
[BlackElo "2423"]
[Annotator "ChessBase"]
[PlyCount "69"]
[EventDate "2021.03.27"]
[EventType "team-tourn"]
[EventCountry "NET"]
[SourceTitle "playchess.com"]
[Source "ChessBase"]
[SourceQuality "1"]
[TimeControl "900+5"]

1. Nf3 {[%emt 0:00:00]} d5 {[%emt 0:00:04]} 2. e3 {[%emt 0:00:02]} Nf6 {[%emt 0:00:03]} 3. c4 {[%emt 0:00:01]} e6 {[%emt 0:00:02]} 4. Nc3 {[%emt 0:00:02]} Be7 {[%emt 0:00:03]} 5. b3 {[%emt 0:00:02]} O-O {[%emt 0:00:02]} 6. Bb2 {[%emt 0:00:01]} dxc4 {[%emt 0:00:01]} 7. Bxc4 {[%emt 0:00:05]} a6 {[%emt 0:00:03]} 8. a4 {[%emt 0:00:31]} b6 {[%emt 0:00:03]} 9. O-O {[%emt 0:00:25]} Bb7 {[%emt 0:00:04]} 10. Ne5 {[%emt 0:00:40]} Nbd7 {[%emt 0:00:04]} 11. f4 {[%emt 0:00:02]} Nxe5 {[%emt 0:00:03]} 12. fxe5 {[%emt 0:00:01]} Ne4 {[%emt 0:00:01]} 13. Nxe4 {[%emt 0:01:43]} Bxe4 {[%emt 0:00:00]} 14. Bc3 {[%emt 0:00:05]} Bd3 {[%emt 0:04:36]} 15. Rf4 {[%emt 0:00:32]} c5 {[%emt 0:02:20]} 16. Qg4 {[%emt 0:02:54]} Qd7 {[%emt 0:01:52]} 17. Qf3 {[%emt 0:03:04]} Bg6 {[%emt 0:03:46]} 18. h4 {[%emt 0:01:39]} h5 {[%emt 0:00:05]} 19. Be2 {[%emt 0:01:04]} Qd5 {[%emt 0:01:19]} 20. e4 {[%emt 0:00:30]} Qd7 {[%emt 0:01:17]} 21. g4 {[%emt 0:00:13]} hxg4 {[%emt 0:00:01]} 22. Qxg4 {[%emt 0:00:00]} b5 {[%emt 0:00:29]} 23. h5 {[%emt 0:01:10]} Bh7 {[%emt 0:00:02]} 24. Kh1 {[%emt 0:01:00]} b4 {[%emt 0:00:32]} 25. Rg1 {[%emt 0:00:03]} g5 {[%emt 0:00:02]} 26. hxg6 {[%emt 0:00:52]} fxg6 {[%emt 0:00:03]} 27. Ba1 {[%emt 0:00:24]} Rxf4 {[%emt 0:00:06]} 28. Qxf4 {[%emt 0:00:00]} Kg7 {[%emt 0:00:07]} 29. Kg2 {[%emt 0:00:12]} Rf8 {[%emt 0:00:02]} 30. Qe3 {[%emt 0:00:01]} Rd8 {[%emt 0:00:10]} 31. d3 {[%emt 0:00:07]} Rf8 {[%emt 0:00:06]} 32. Rh1 {[%emt 0:00:04]} Rf7 {[%emt 0:00:04]} 33. Bg4 {[%emt 0:00:10]} Bf8 {[%emt 0:00:06]} 34. Qh3 {[%emt 0:00:02]} Kh8 {[%emt 0:00:05]} 35. Bxe6 {[%emt 0:00:03]} 1-0

[Event "European Online Club-ch-C 2021"]
[Site "Online"]
[Date "2021.03.27"]
[Round "6.16"]
[White "Wachinger, Nikolas"]
[Black "Kollars, Dmitrij"]
[Result "1-0"]
[ECO "C64"]
[WhiteElo "2369"]
[BlackElo "2598"]
[Annotator "ChessBase"]
[PlyCount "115"]
[EventDate "2021.03.27"]
[EventType "team-tourn"]
[EventCountry "NET"]
[SourceTitle "playchess.com"]
[Source "ChessBase"]
[SourceQuality "1"]
[TimeControl "900+5"]

1. e4 {[%emt 0:00:00]} e5 {[%emt 0:00:13]} 2. Nf3 {[%emt 0:00:05]} Nc6 {[%emt 0:00:06]} 3. Bb5 {[%emt 0:00:04]} a6 {[%emt 0:00:03]} 4. Ba4 {[%emt 0:00:02]} Bc5 {[%emt 0:00:22]} 5. O-O {[%emt 0:00:12]} Nge7 {[%emt 0:00:07]} 6. c3 {[%emt 0:00:07]} Ba7 {[%emt 0:00:02]} 7. d4 {[%emt 0:00:03]} Ng6 {[%emt 0:00:42]} 8. Bg5 {[%emt 0:00:24]} f6 {[%emt 0:00:02]} 9. Be3 {[%emt 0:00:07]} O-O {[%emt 0:00:03]} 10. Nbd2 {[%emt 0:00:19]} Kh8 {[%emt 0:00:18]} 11. Re1 {[%emt 0:00:06]} d6 {[%emt 0:00:09]} 12. h3 {[%emt 0:00:26]} Qe8 {[%emt 0:00:31]} 13. Nf1 {[%emt 0:00:25]} Bd7 {[%emt 0:00:58]} 14. Bc2 {[%emt 0:00:50]} Nce7 {[%emt 0:01:42]} 15. Qd2 {[%emt 0:00:24]} Rd8 {[%emt 0:01:47]} 16. Ng3 {[%emt 0:00:25]} f5 {[%emt 0:00:31]} 17. exf5 {[%emt 0:00:13]} Nxf5 {[%emt 0:00:07]} 18. Nxf5 {[%emt 0:02:08]} Bxf5 {[%emt 0:00:02]} 19. dxe5 {[%emt 0:00:37]} dxe5 {[%emt 0:02:31]} 20. Qc1 {[%emt 0:01:28]} Bxe3 {[%emt 0:00:15]} 21. Rxe3 {[%emt 0:00:00]} Qf7 {[%emt 0:00:50]} 22. Bxf5 {[%emt 0:00:52]} Qxf5 {[%emt 0:00:00]} 23. Qb1 {[%emt 0:00:01]} Qf6 {[%emt 0:02:10]} 24. Qe4 {[%emt 0:00:18]} Qb6 {[%emt 0:00:01]} 25. Qb4 {[%emt 0:00:39]} Qxb4 {[%emt 0:01:10]} 26. cxb4 {[%emt 0:00:00]} Rd5 {[%emt 0:00:01]} 27. Rae1 {[%emt 0:00:16]} Re8 {[%emt 0:00:02]} 28. g3 {[%emt 0:00:10]} h6 {[%emt 0:00:07]} 29. h4 {[%emt 0:00:04]} h5 {[%emt 0:00:26]} 30. Kg2 {[%emt 0:00:14]} Kg8 {[%emt 0:00:02]} 31. R1e2 {[%emt 0:00:25]} c6 {[%emt 0:00:07]} 32. a3 {[%emt 0:00:05]} Re7 {[%emt 0:00:10]} 33. Kf1 {[%emt 0:00:17]} Kf8 {[%emt 0:00:23]} 34. Ng5 {[%emt 0:00:14]} Ke8 {[%emt 0:00:39]} 35. Rf3 {[%emt 0:00:14]} Nf8 {[%emt 0:00:29]} 36. Rf5 {[%emt 0:00:23]} e4 {[%emt 0:00:38]} 37. Nxe4 {[%emt 0:00:42]} Rxf5 {[%emt 0:00:13]} 38. Nd6+ {[%emt 0:00:03]} Kd7 {[%emt 0:00:01]} 39. Nxf5 {[%emt 0:00:03]} Rxe2 {[%emt 0:00:02]} 40. Kxe2 {[%emt 0:00:02]} g6 {[%emt 0:00:02]} 41. Nd4 {[%emt 0:00:09]} Kd6 {[%emt 0:00:02]} 42. Ke3 {[%emt 0:00:07]} Kd5 {[%emt 0:00:04]} 43. b3 {[%emt 0:00:14]} Nd7 {[%emt 0:00:07]} 44. Ne2 {[%emt 0:00:11]} Ke5 {[%emt 0:00:02]} 45. Nf4 {[%emt 0:00:05]} Kf5 {[%emt 0:00:04]} 46. Nd3 {[%emt 0:00:04]} b6 {[%emt 0:00:05]} 47. Kd4 {[%emt 0:00:17]} Nf6 {[%emt 0:00:06]} 48. f3 {[%emt 0:00:12]} Nd7 {[%emt 0:00:01]} 49. a4 {[%emt 0:00:15]} Ke6 {[%emt 0:00:17]} 50. a5 {[%emt 0:00:10]} bxa5 {[%emt 0:00:00]} 51. bxa5 {[%emt 0:00:03]} Kd6 {[%emt 0:00:01]} 52. b4 {[%emt 0:00:03]} Nf6 {[%emt 0:00:21]} 53. Nc5 {[%emt 0:00:17]} Nh7 {[%emt 0:00:01]} 54. Nxa6 {[%emt 0:00:03]} g5 {[%emt 0:00:02]} 55. hxg5 {[%emt 0:00:14]} Nxg5 {[%emt 0:00:00]} 56. Ke3 {[%emt 0:00:01]} Ne6 {[%emt 0:00:07]} 57. f4 {[%emt 0:00:05]} Kd5 {[%emt 0:00:05]} 58. f5 {[%emt 0:00:09]} 1-0

[Event "European Online Club-ch-C 2021"]
[Site "Online"]
[Date "2021.03.27"]
[Round "6.17"]
[White "Nguyen, Thai Dai Van"]
[Black "Delgado Ramirez, Neuris"]
[Result "1/2-1/2"]
[ECO "B55"]
[WhiteElo "2577"]
[BlackElo "2615"]
[Annotator "ChessBase"]
[PlyCount "106"]
[EventDate "2021.03.27"]
[EventType "team-tourn"]
[EventCountry "NET"]
[SourceTitle "playchess.com"]
[Source "ChessBase"]
[SourceQuality "1"]
[TimeControl "900+5"]

1. e4 {[%emt 0:00:00]} c5 {[%emt 0:00:04]} 2. Nf3 {[%emt 0:00:03]} d6 {[%emt 0:00:03]} 3. d4 {[%emt 0:00:20]} cxd4 {[%emt 0:00:03]} 4. Nxd4 {[%emt 0:00:00]} Nf6 {[%emt 0:00:02]} 5. f3 {[%emt 0:00:01]} e5 {[%emt 0:00:06]} 6. Nb3 {[%emt 0:00:02]} Be7 {[%emt 0:00:26]} 7. c4 {[%emt 0:00:06]} O-O {[%emt 0:00:03]} 8. Nc3 {[%emt 0:00:09]} a5 {[%emt 0:00:03]} 9. Be3 {[%emt 0:00:01]} a4 {[%emt 0:00:02]} 10. Nd2 {[%emt 0:00:02]} Qa5 {[%emt 0:00:09]} 11. Be2 {[%emt 0:00:25]} a3 {[%emt 0:01:21]} 12. Qc2 {[%emt 0:01:15]} Nc6 {[%emt 0:01:23]} 13. Nb3 {[%emt 0:05:22]} Nb4 {[%emt 0:02:30]} 14. Qd2 {[%emt 0:00:04]} axb2 {[%emt 0:00:04]} 15. Qxb2 {[%emt 0:00:00]} Qa3 {[%emt 0:00:03]} 16. Qxa3 {[%emt 0:00:01]} Rxa3 {[%emt 0:00:03]} 17. Kd2 {[%emt 0:00:00]} Be6 {[%emt 0:00:24]} 18. Rhb1 {[%emt 0:00:26]} Rfa8 {[%emt 0:00:12]} 19. Nc1 {[%emt 0:00:09]} Nc6 {[%emt 0:00:18]} 20. Rxb7 {[%emt 0:01:28]} Bd8 {[%emt 0:00:05]} 21. Rb3 {[%emt 0:00:01]} Rxb3 {[%emt 0:01:47]} 22. Nxb3 {[%emt 0:00:00]} Ba5 {[%emt 0:00:16]} 23. Nxa5 {[%emt 0:01:44]} Nxa5 {[%emt 0:00:04]} 24. Kc2 {[%emt 0:00:33]} Nxc4 {[%emt 0:00:07]} 25. Bxc4 {[%emt 0:00:02]} Bxc4 {[%emt 0:00:02]} 26. a4 {[%emt 0:00:01]} d5 {[%emt 0:00:10]} 27. exd5 {[%emt 0:00:00]} Nxd5 {[%emt 0:00:01]} 28. Nxd5 {[%emt 0:00:02]} Bxd5 {[%emt 0:00:02]} 29. a5 {[%emt 0:00:00]} f5 {[%emt 0:00:04]} 30. a6 {[%emt 0:00:03]} f4 {[%emt 0:00:04]} 31. Bd2 {[%emt 0:00:52]} Ra7 {[%emt 0:00:18]} 32. Kc3 {[%emt 0:00:17]} Kf7 {[%emt 0:00:23]} 33. Kb4 {[%emt 0:00:07]} Ke6 {[%emt 0:00:07]} 34. Kb5 {[%emt 0:00:09]} g5 {[%emt 0:00:18]} 35. Kb6 {[%emt 0:00:33]} Ra8 {[%emt 0:00:12]} 36. a7 {[%emt 0:00:05]} e4 {[%emt 0:01:00]} 37. fxe4 {[%emt 0:00:33]} Bxe4 {[%emt 0:00:03]} 38. Re1 {[%emt 0:01:00]} Kf5 {[%emt 0:00:12]} 39. g4+ {[%emt 0:01:05]} fxg3 {[%emt 0:02:22]} 40. hxg3 {[%emt 0:00:00]} Bf3 {[%emt 0:00:03]} 41. Re7 {[%emt 0:00:24]} Kg4 {[%emt 0:00:10]} 42. Rxh7 {[%emt 0:00:08]} Rg8 {[%emt 0:00:06]} 43. Be1 {[%emt 0:00:35]} Re8 {[%emt 0:00:08]} 44. Bd2 {[%emt 0:00:06]} Rg8 {[%emt 0:00:16]} 45. Be1 {[%emt 0:00:17]} Re8 {[%emt 0:00:03]} 46. Bb4 {[%emt 0:00:01]} Kxg3 {[%emt 0:00:35]} 47. Bd6+ {[%emt 0:00:02]} Kg2 {[%emt 0:00:04]} 48. Re7 {[%emt 0:00:09]} Rxe7 {[%emt 0:00:05]} 49. Bxe7 {[%emt 0:00:00]} g4 {[%emt 0:00:02]} 50. Bd6 {[%emt 0:00:01]} g3 {[%emt 0:00:03]} 51. Bb8 {[%emt 0:00:01]} Kf2 {[%emt 0:00:07]} 52. Bxg3+ {[%emt 0:00:00]} Kxg3 {[%emt 0:00:02]} 53. a8=Q {[%emt 0:00:00]} Bxa8 {[%emt 0:00:02]} 1/2-1/2

[Event "European Online Club-ch-C 2021"]
[Site "Online"]
[Date "2021.03.27"]
[Round "6.18"]
[White "Martinez Alcantara, Jose Eduardo"]
[Black "Michalik, Peter"]
[Result "1-0"]
[ECO "C84"]
[WhiteElo "2620"]
[BlackElo "2594"]
[Annotator "ChessBase"]
[PlyCount "89"]
[EventDate "2021.03.27"]
[EventType "team-tourn"]
[EventCountry "NET"]
[SourceTitle "playchess.com"]
[Source "ChessBase"]
[SourceQuality "1"]
[TimeControl "900+5"]

1. e4 {[%emt 0:00:00]} e5 {[%emt 0:00:02]} 2. Nf3 {[%emt 0:00:07]} Nc6 {[%emt 0:00:02]} 3. Bb5 {[%emt 0:00:07]} a6 {[%emt 0:00:03]} 4. Ba4 {[%emt 0:00:02]} Nf6 {[%emt 0:00:01]} 5. d3 {[%emt 0:00:01]} b5 {[%emt 0:00:09]} 6. Bb3 {[%emt 0:00:03]} Be7 {[%emt 0:00:03]} 7. O-O {[%emt 0:00:14]} d6 {[%emt 0:00:05]} 8. a4 {[%emt 0:00:06]} Bd7 {[%emt 0:00:07]} 9. c3 {[%emt 0:00:05]} O-O {[%emt 0:00:02]} 10. Re1 {[%emt 0:00:46]} Na5 {[%emt 0:00:08]} 11. Bc2 {[%emt 0:00:03]} c5 {[%emt 0:00:02]} 12. Bg5 {[%emt 0:00:35]} h6 {[%emt 0:00:16]} 13. Bxf6 {[%emt 0:00:03]} Bxf6 {[%emt 0:00:00]} 14. Nbd2 {[%emt 0:00:04]} Be6 {[%emt 0:00:06]} 15. axb5 {[%emt 0:00:17]} axb5 {[%emt 0:00:02]} 16. Nf1 {[%emt 0:00:02]} g6 {[%emt 0:00:17]} 17. Ne3 {[%emt 0:00:07]} Bg7 {[%emt 0:00:02]} 18. Nd5 {[%emt 0:00:35]} Bxd5 {[%emt 0:01:28]} 19. exd5 {[%emt 0:00:03]} Nb7 {[%emt 0:00:02]} 20. Rb1 {[%emt 0:02:32]} Qd7 {[%emt 0:00:26]} 21. Nd2 {[%emt 0:00:43]} f5 {[%emt 0:00:16]} 22. b4 {[%emt 0:00:45]} Rfb8 {[%emt 0:02:02]} 23. g3 {[%emt 0:00:33]} cxb4 {[%emt 0:00:28]} 24. cxb4 {[%emt 0:00:04]} Rc8 {[%emt 0:00:32]} 25. Rc1 {[%emt 0:01:52]} Rc7 {[%emt 0:00:07]} 26. Bb3 {[%emt 0:00:14]} Nd8 {[%emt 0:01:57]} 27. Rxc7 {[%emt 0:01:21]} Qxc7 {[%emt 0:00:00]} 28. Qc1 {[%emt 0:00:01]} Qb7 {[%emt 0:00:45]} 29. Nf3 {[%emt 0:01:14]} Rc8 {[%emt 0:00:52]} 30. Qd1 {[%emt 0:01:54]} Qc7 {[%emt 0:00:29]} 31. Nxe5 {[%emt 0:01:09]} Kh7 {[%emt 0:00:40]} 32. Nc6 {[%emt 0:00:42]} Nxc6 {[%emt 0:00:08]} 33. dxc6 {[%emt 0:00:01]} Qxc6 {[%emt 0:00:01]} 34. h4 {[%emt 0:00:45]} h5 {[%emt 0:01:24]} 35. Bf7 {[%emt 0:00:03]} Bf6 {[%emt 0:00:54]} 36. Qe2 {[%emt 0:00:25]} Kg7 {[%emt 0:01:01]} 37. Be8 {[%emt 0:00:01]} Qd5 {[%emt 0:00:11]} 38. d4 {[%emt 0:00:22]} Qxd4 {[%emt 0:00:37]} 39. Qe6 {[%emt 0:00:07]} Rc7 {[%emt 0:00:03]} 40. Bd7 {[%emt 0:00:06]} f4 {[%emt 0:00:23]} 41. g4 {[%emt 0:00:04]} Rc2 {[%emt 0:00:08]} 42. Rf1 {[%emt 0:00:07]} Bxh4 {[%emt 0:01:14]} 43. gxh5 {[%emt 0:00:01]} Bxf2+ {[%emt 0:00:07]} 44. Kh1 {[%emt 0:00:01]} Qf6 {[%emt 0:00:04]} 45. h6+ {[%emt 0:00:02]} 1-0